[Event "EYCC Open U8 2018"]
[Site "Riga"]
[Date "2018.08.29"]
[Round "9"]
[White "Jaakkola, Niklas"]
[Black "Uskov, Artem"]
[Result "1/2-1/2"]
[ECO "A13"]
[WhiteElo "1352"]
[BlackElo "1320"]
[Annotator "NA"]
[PlyCount "130"]
[EventDate "2018.08.20"]
[EventType "swiss"]
[EventCountry "LAT"]
[SourceTitle "playchess.com"]
[Source "ChessBase"]
[SourceQuality "1"]
[TimeControl "40/5400+30:1800+30"]

1. c4 {[%emt 0:00:00]} e6 {[%emt 0:00:00]} 2. g3 {[%emt 0:00:00]} d5 {[%emt 0:01:32]} 3. cxd5 {[%emt 0:00:11]} exd5 {[%emt 0:01:28]} 4. Bg2 {[%emt 0:01:41]} c6 {[%emt 0:01:00]} 5. d4 {[%emt 0:04:18]} Nf6 {[%emt 0:01:43]} 6. Nf3 {[%emt 0:02:59]} Be7 {[%emt 0:03:17]} 7. O-O {[%emt 0:00:37]} O-O {[%emt 0:01:29]} 8. Nc3 {[%emt 0:04:01]} Nbd7 {[%emt 0:01:38]} 9. Re1 {[%emt 0:00:46]} Nb6 {[%emt 0:01:27]} 10. b3 {[%emt 0:09:28]} a5 {[%emt 0:03:12]} 11. a3 {[%emt 0:04:06]} Nbd7 {[%emt 0:01:45]} 12. e3 {[%emt 0:05:10]} b6 {[%emt 0:04:45]} 13. h3 {[%emt 0:05:08]} Bb7 {[%emt 0:02:02]} 14. Bb2 {[%emt 0:00:24]} Rc8 {[%emt 0:01:05]} 15. Rc1 {[%emt 0:00:39]} h6 {[%emt 0:01:17]} 16. Nh4 {[%emt 0:05:40]} Re8 {[%emt 0:01:56]} 17. Qd3 {[%emt 0:03:24]} Bf8 {[%emt 0:02:57]} 18. Rcd1 {[%emt 0:15:56]} Qc7 {[%emt 0:03:57]} 19. e4 {[%emt 0:08:46]} dxe4 {[%emt 0:00:20]} 20. Nxe4 {[%emt 0:00:11]} Nxe4 {[%emt 0:00:06]} 21. Bxe4 {[%emt 0:00:31]} Nf6 {[%emt 0:00:16]} 22. Bg2 {[%emt 0:00:48]} Nd5 {[%emt 0:01:24]} 23. Rc1 {[%emt 0:06:13]} Qd8 {[%emt 0:00:40]} 24. Kh2 {[%emt 0:07:44]} Rxe1 {[%emt 0:02:52]} 25. Rxe1 {[%emt 0:00:14]} Rc7 {[%emt 0:00:03]} 26. Nf5 {[%emt 0:03:43]} g6 {[%emt 0:00:33]} 27. Ne3 {[%emt 0:00:29]} Re7 {[%emt 0:00:06]} 28. Rc1 {[%emt 0:00:30]} Bg7 {[%emt 0:01:04]} 29. Nxd5 {[%emt 0:00:27]} cxd5 {[%emt 0:00:07]} 30. Qb5 {[%emt 0:01:19]} Kh7 {[%emt 0:00:24]} 31. a4 {[%emt 0:03:43]} Re6 {[%emt 0:02:05]} 32. Kg1 {[%emt 0:01:29]} Qd6 {[%emt 0:07:18]} 33. Kf1 {[%emt 0:01:44]} h5 {[%emt 0:12:44]} 34. Re1 {[%emt 0:01:11]} Qc6 {[%emt 0:06:40]} 35. Qxc6 {[%emt 0:01:16]} Bxc6 {[%emt 0:00:32]} 36. Re3 {[%emt 0:00:40]} Bh6 {[%emt 0:00:29]} 37. Rxe6 {[%emt 0:00:49]} fxe6 {[%emt 0:00:05]} 38. Ke1 {[%emt 0:00:22]} g5 {[%emt 0:00:18]} 39. Kd2 {[%emt 0:00:26]} b5 {[%emt 0:00:06]} 40. axb5 {[%emt 0:00:00]} Bxb5 {[%emt 0:00:00]} 41. Kc3 {[%emt 0:00:59]} Bd7 {[%emt 0:00:42]} 42. b4 {[%emt 0:00:41]} a4 {[%emt 0:00:22]} 43. Bf1 Bf8 {[%emt 0:00:18]} 44. Ba3 {[%emt 0:01:24]} Bd6 {[%emt 0:00:05]} 45. Kb2 {[%emt 0:01:03]} e5 {[%emt 0:00:17]} 46. b5 {[%emt 0:00:17]} Bc7 {[%emt 0:00:38]} 47. Bc5 {[%emt 0:00:21]} Kg6 {[%emt 0:00:40]} 48. Ka3 {[%emt 0:00:53]} e4 {[%emt 0:00:28]} 49. Kxa4 {[%emt 0:00:26]} Kf5 {[%emt 0:00:10]} 50. Be2 {[%emt 0:00:37]} g4 {[%emt 0:00:18]} 51. hxg4+ {[%emt 0:01:07]} hxg4 {[%emt 0:00:05]} 52. Kb4 {[%emt 0:01:24]} e3 {[%emt 0:00:14]} 53. Bd3+ {[%emt 0:01:05]} Kg5 {[%emt 0:00:34]} 54. b6 {[%emt 0:00:33]} Bb8 {[%emt 0:00:38]} 55. Be7+ {[%emt 0:00:44]} Kh6 {[%emt 0:00:23]} 56. Bh4 {[%emt 0:00:37]} Bf5 {[%emt 0:01:11]} 57. Bf1 {[%emt 0:01:04]} exf2 {[%emt 0:00:05]} 58. Kc5 {[%emt 0:00:33]} Be4 {[%emt 0:00:05]} 59. Kc6 {[%emt 0:00:42]} Kg6 {[%emt 0:00:09]} 60. Kb7 {[%emt 0:00:28]} Bd6 {[%emt 0:00:11]} 61. Bd8 {[%emt 0:01:50]} Bxg3 {[%emt 0:01:17]} 62. Bc7 {[%emt 0:00:09]} Bxc7 {[%emt 0:00:05]} 63. bxc7 {[%emt 0:00:08]} Bf5 {[%emt 0:00:06]} 64. Kc6 {[%emt 0:06:24]} Be6 {[%emt 0:00:12]} 65. Kd6 {[%emt 0:00:13]} Kf6 {[%emt 0:00:09]} 1/2-1/2